[Event "Vastgota Open 2023"]
[Site "Skara stadshotell, Jarnvagsgatan 5, Skara, Sweden"]
[Date "2023.02.18"]
[Round "1.8"]
[White "Tillman, Jan-Olof"]
[Black "Kucuksari, Kaan"]
[Result "0-1"]
[TimeControl "15 minutes + 5 seconds per move from move one (Round 1 - 2) / 30 minutes + 10 seconds per move from move one (Round 3 - 9)"]
[BlackTitle "IM"]
[WhiteFideId "1712080"]
[BlackFideId "6380166"]
[WhiteElo "1794"]
[BlackElo "2380"]

1. d4 {[%clk 00:15:07]} {[%emt 00:00:01]} Nf6 {[%clk 00:15:08]} {[%emt
00:00:02]} 2. c4 {[%clk 00:15:10]} {[%emt 00:00:03]} g6 {[%clk 00:15:11]}
{[%emt 00:00:03]} 3. Nc3 {[%clk 00:15:09]} {[%emt 00:00:06]} d5 {[%clk
00:15:14]} {[%emt 00:00:01]} 4. cxd5 {[%clk 00:14:37]} {[%emt 00:00:37]} Nxd5
{[%clk 00:15:17]} {[%emt 00:00:02]} 5. Nf3 {[%clk 00:14:18]} {[%emt 00:00:25]}
Bg7 {[%clk 00:15:19]} {[%emt 00:00:02]} 6. e4 {[%clk 00:12:59]} {[%emt
00:01:24]} Nxc3 {[%clk 00:15:22]} {[%emt 00:00:02]} 7. bxc3 {[%clk 00:13:03]}
{[%emt 00:00:02]} c5 {[%clk 00:15:24]} {[%emt 00:00:02]} 8. Be3 {[%clk
00:12:51]} {[%emt 00:00:16]} cxd4 {[%clk 00:15:27]} {[%emt 00:00:03]} 9. Bxd4
{[%clk 00:12:24]} {[%emt 00:00:31]} O-O {[%clk 00:15:24]} {[%emt 00:00:09]} 10.
Bxg7 {[%clk 00:11:56]} {[%emt 00:00:33]} Qxd1+ {[%clk 00:15:17]} {[%emt
00:00:11]} 11. Rxd1 {[%clk 00:11:59]} {[%emt 00:00:02]} Kxg7 {[%clk 00:15:20]}
{[%emt 00:00:03]} 12. Bd3 {[%clk 00:09:36]} {[%emt 00:02:27]} Nd7 {[%clk
00:15:17]} {[%emt 00:00:09]} 13. O-O {[%clk 00:09:34]} {[%emt 00:00:07]} Nc5
{[%clk 00:15:21]} {[%emt 00:00:02]} 14. Bb1 {[%clk 00:09:29]} {[%emt 00:00:08]}
Be6 {[%clk 00:15:16]} {[%emt 00:00:11]} 15. Nd4 {[%clk 00:08:02]} {[%emt
00:01:32]} Rac8 {[%clk 00:15:04]} {[%emt 00:00:16]} 16. Nxe6+ {[%clk 00:07:49]}
{[%emt 00:00:19]} Nxe6 {[%clk 00:15:04]} {[%emt 00:00:05]} 17. Rd7 {[%clk
00:07:45]} {[%emt 00:00:08]} Rc7 {[%clk 00:15:01]} {[%emt 00:00:09]} 18. Rfd1
{[%clk 00:07:42]} {[%emt 00:00:08]} Rfc8 {[%clk 00:14:38]} {[%emt 00:00:28]} 19.
g3 {[%clk 00:06:48]} {[%emt 00:00:58]} Nc5 {[%clk 00:14:31]} {[%emt 00:00:13]}
20. Rxc7 {[%clk 00:05:43]} {[%emt 00:01:10]} Rxc7 {[%clk 00:14:34]} {[%emt
00:00:02]} 21. c4 {[%clk 00:04:10]} {[%emt 00:01:38]} Na4 {[%clk 00:14:28]}
{[%emt 00:00:11]} 22. Bc2 {[%clk 00:02:20]} {[%emt 00:01:55]} Nb2 {[%clk
00:14:26]} {[%emt 00:00:07]} 23. Rb1 {[%clk 00:01:46]} {[%emt 00:00:39]} Nxc4
{[%clk 00:14:29]} {[%emt 00:00:03]} 24. Bb3 {[%clk 00:01:47]} {[%emt 00:00:04]}
Nd2 {[%clk 00:14:30]} {[%emt 00:00:04]} 25. Re1 {[%clk 00:01:45]} {[%emt
00:00:05]} Nf3+ {[%clk 00:14:32]} {[%emt 00:00:03]} 0-1

[Event "Vastgota Open 2023"]
[Site "Skara stadshotell, Jarnvagsgatan 5, Skara, Sweden"]
[Date "2023.02.18"]
[Round "1.9"]
[White "Kockum, Anton Frisk"]
[Black "Johansson, Per"]
[Result "1-0"]
[TimeControl "15 minutes + 5 seconds per move from move one (Round 1 - 2) / 30 minutes + 10 seconds per move from move one (Round 3 - 9)"]
[WhiteTitle "FM"]
[WhiteFideId "1709143"]
[BlackFideId "1724126"]
[WhiteElo "2367"]
[BlackElo "1792"]

1. d4 {[%clk 00:15:08]} {[%emt 00:00:01]} Nf6 {[%clk 00:15:09]} {[%emt
00:00:01]} 2. c4 {[%clk 00:15:11]} {[%emt 00:00:02]} Nc6 {[%clk 00:15:13]}
{[%emt 00:00:01]} 3. Nf3 {[%clk 00:15:00]} {[%emt 00:00:16]} e6 {[%clk
00:15:17]} {[%emt 00:00:01]} 4. Nc3 {[%clk 00:14:38]} {[%emt 00:00:27]} Bb4
{[%clk 00:15:18]} {[%emt 00:00:05]} 5. Bd2 {[%clk 00:14:33]} {[%emt 00:00:10]}
O-O {[%clk 00:15:09]} {[%emt 00:00:14]} 6. e3 {[%clk 00:13:27]} {[%emt
00:01:10]} b6 {[%clk 00:15:10]} {[%emt 00:00:05]} 7. Bd3 {[%clk 00:12:54]}
{[%emt 00:00:37]} Bb7 {[%clk 00:15:14]} {[%emt 00:00:02]} 8. O-O {[%clk
00:12:33]} {[%emt 00:00:25]} Be7 {[%clk 00:14:56]} {[%emt 00:00:23]} 9. e4
{[%clk 00:10:48]} {[%emt 00:01:50]} d6 {[%clk 00:15:00]} {[%emt 00:00:02]} 10.
a3 {[%clk 00:10:11]} {[%emt 00:00:42]} a5 {[%clk 00:15:05]} 11. h3 {[%clk
00:08:54]} {[%emt 00:01:22]} Nd7 {[%clk 00:15:07]} {[%emt 00:00:03]} 12. Be3
{[%clk 00:08:24]} {[%emt 00:00:34]} e5 {[%clk 00:15:09]} {[%emt 00:00:03]} 13.
d5 {[%clk 00:08:19]} {[%emt 00:00:11]} Ncb8 {[%clk 00:15:13]} 14. b4 {[%clk
00:08:17]} {[%emt 00:00:08]} Re8 {[%clk 00:14:21]} {[%emt 00:00:57]} 15. Qd2
{[%clk 00:06:35]} {[%emt 00:01:46]} Nf8 {[%clk 00:14:25]} {[%emt 00:00:02]} 16.
c5 {[%clk 00:05:52]} {[%emt 00:00:47]} bxc5 {[%clk 00:14:28]} {[%emt 00:00:02]}
17. bxc5 {[%clk 00:05:56]} {[%emt 00:00:01]} Ba6 {[%clk 00:14:04]} {[%emt
00:00:30]} 18. c6 {[%clk 00:05:43]} {[%emt 00:00:17]} Bxd3 {[%clk 00:13:42]}
{[%emt 00:00:28]} 19. Qxd3 {[%clk 00:05:46]} {[%emt 00:00:01]} Ng6 {[%clk
00:13:18]} {[%emt 00:00:29]} 20. g3 {[%clk 00:05:36]} {[%emt 00:00:15]} Qc8
{[%clk 00:13:22]} {[%emt 00:00:02]} 21. Kg2 {[%clk 00:05:37]} {[%emt 00:00:04]}
Rf8 {[%clk 00:13:19]} {[%emt 00:00:08]} 22. Rab1 {[%clk 00:05:07]} {[%emt
00:00:35]} f5 {[%clk 00:13:21]} {[%emt 00:00:03]} 23. exf5 {[%clk 00:05:10]}
{[%emt 00:00:02]} Qxf5 {[%clk 00:13:24]} {[%emt 00:00:02]} 24. Qxf5 {[%clk
00:05:07]} {[%emt 00:00:07]} Rxf5 {[%clk 00:13:28]} {[%emt 00:00:02]} 25. Rb7
{[%clk 00:05:06]} {[%emt 00:00:05]} Bd8 {[%clk 00:13:32]} {[%emt 00:00:01]} 26.
Nd2 {[%clk 00:04:38]} {[%emt 00:00:33]} Na6 {[%clk 00:12:49]} {[%emt 00:00:49]}
27. Nde4 {[%clk 00:04:39]} {[%emt 00:00:04]} h6 {[%clk 00:12:46]} {[%emt
00:00:08]} 28. Rfb1 {[%clk 00:04:19]} {[%emt 00:00:25]} Rf7 {[%clk 00:12:46]}
{[%emt 00:00:05]} 29. R1b5 {[%clk 00:04:07]} {[%emt 00:00:16]} a4 {[%clk
00:12:22]} {[%emt 00:00:30]} 30. Ra5 {[%clk 00:04:10]} {[%emt 00:00:01]} Ne7
{[%clk 00:12:25]} {[%emt 00:00:02]} 31. Rxa4 {[%clk 00:04:03]} {[%emt
00:00:12]} Nc8 {[%clk 00:12:04]} {[%emt 00:00:26]} 32. Nb5 {[%clk 00:03:50]}
{[%emt 00:00:19]} Nb6 {[%clk 00:12:01]} {[%emt 00:00:08]} 33. Bxb6 {[%clk
00:03:48]} {[%emt 00:00:06]} cxb6 {[%clk 00:11:59]} {[%emt 00:00:07]} 34. Nexd6
{[%clk 00:03:39]} {[%emt 00:00:15]} Rf8 {[%clk 00:11:03]} {[%emt 00:01:00]} 35.
Ne4 {[%clk 00:03:41]} {[%emt 00:00:02]} 1-0

[Event "Vastgota Open 2023"]
[Site "Skara stadshotell, Jarnvagsgatan 5, Skara, Sweden"]
[Date "2023.02.18"]
[Round "1.10"]
[White "Frisk, Anders"]
[Black "Bellon Lopez, Juan Manuel"]
[Result "0-1"]
[TimeControl "15 minutes + 5 seconds per move from move one (Round 1 - 2) / 30 minutes + 10 seconds per move from move one (Round 3 - 9)"]
[BlackTitle "GM"]
[WhiteFideId "1718797"]
[BlackFideId "2200031"]
[WhiteElo "1781"]
[BlackElo "2318"]

1. c4 {[%clk 00:15:08]} {[%emt 00:00:01]} g6 {[%clk 00:15:08]} {[%emt
00:00:02]} 2. Nc3 {[%clk 00:15:07]} {[%emt 00:00:07]} Bg7 {[%clk 00:15:12]}
{[%emt 00:00:01]} 3. g3 {[%clk 00:15:03]} {[%emt 00:00:09]} c5 {[%clk
00:15:14]} {[%emt 00:00:02]} 4. Bg2 {[%clk 00:14:59]} {[%emt 00:00:09]} Nc6
{[%clk 00:15:17]} {[%emt 00:00:02]} 5. e4 {[%clk 00:14:32]} {[%emt 00:00:32]}
e6 {[%clk 00:15:15]} {[%emt 00:00:07]} 6. Nge2 {[%clk 00:14:13]} {[%emt
00:00:24]} Nge7 {[%clk 00:15:18]} {[%emt 00:00:03]} 7. d3 {[%clk 00:13:30]}
{[%emt 00:00:48]} O-O {[%clk 00:15:18]} {[%emt 00:00:05]} 8. O-O {[%clk
00:13:30]} {[%emt 00:00:04]} d6 {[%clk 00:15:20]} {[%emt 00:00:03]} 9. Be3
{[%clk 00:13:06]} {[%emt 00:00:29]} Nd4 {[%clk 00:15:21]} {[%emt 00:00:04]} 10.
Qd2 {[%clk 00:11:59]} {[%emt 00:01:13]} Rb8 {[%clk 00:15:21]} {[%emt 00:00:05]}
11. Rab1 {[%clk 00:11:06]} {[%emt 00:00:57]} a6 {[%clk 00:15:12]} {[%emt
00:00:15]} 12. Bh6 {[%clk 00:10:23]} {[%emt 00:00:48]} b5 {[%clk 00:14:37]}
{[%emt 00:00:40]} 13. Bxg7 {[%clk 00:09:50]} {[%emt 00:00:38]} Kxg7 {[%clk
00:14:40]} {[%emt 00:00:02]} 14. b3 {[%clk 00:09:17]} {[%emt 00:00:38]} b4
{[%clk 00:14:17]} {[%emt 00:00:27]} 15. Nxd4 {[%clk 00:08:59]} {[%emt
00:00:24]} bxc3 {[%clk 00:14:00]} {[%emt 00:00:21]} 16. Nxe6+ {[%clk 00:08:15]}
{[%emt 00:00:49]} fxe6 {[%clk 00:14:00]} {[%emt 00:00:05]} 17. Qxc3+ {[%clk
00:08:18]} {[%emt 00:00:03]} e5 {[%clk 00:13:56]} {[%emt 00:00:09]} 18. f4
{[%clk 00:07:26]} {[%emt 00:00:56]} Nc6 {[%clk 00:13:58]} {[%emt 00:00:03]} 19.
f5 {[%clk 00:06:12]} {[%emt 00:01:20]} Nd4 {[%clk 00:14:00]} {[%emt 00:00:03]}
20. Qd2 {[%clk 00:04:44]} {[%emt 00:01:33]} gxf5 {[%clk 00:13:49]} {[%emt
00:00:16]} 21. exf5 {[%clk 00:04:29]} {[%emt 00:00:20]} Bxf5 {[%clk 00:13:36]}
{[%emt 00:00:17]} 22. Rbe1 {[%clk 00:04:09]} {[%emt 00:00:25]} Bg6 {[%clk
00:13:23]} {[%emt 00:00:18]} 23. h4 {[%clk 00:02:56]} {[%emt 00:01:18]} Qe7
{[%clk 00:12:39]} {[%emt 00:00:48]} 24. Kh2 {[%clk 00:02:20]} {[%emt 00:00:42]}
Rxf1 {[%clk 00:12:34]} {[%emt 00:00:11]} 25. Rxf1 {[%clk 00:02:20]} {[%emt
00:00:04]} Rf8 {[%clk 00:12:31]} {[%emt 00:00:08]} 26. Rxf8 {[%clk 00:01:57]}
{[%emt 00:00:28]} Qxf8 {[%clk 00:12:34]} {[%emt 00:00:02]} 27. Qe3 {[%clk
00:01:51]} {[%emt 00:00:11]} Qf5 {[%clk 00:12:06]} {[%emt 00:00:32]} 28. Be4
{[%clk 00:01:39]} {[%emt 00:00:18]} Qg4 {[%clk 00:12:02]} {[%emt 00:00:07]} 29.
Kg2 {[%clk 00:00:54]} {[%emt 00:00:52]} Qe2+ {[%clk 00:11:47]} {[%emt
00:00:18]} 30. Qxe2 {[%clk 00:00:55]} {[%emt 00:00:06]} Nxe2 {[%clk 00:11:50]}
{[%emt 00:00:02]} 31. Kf3 {[%clk 00:00:48]} {[%emt 00:00:12]} Nc1 {[%clk
00:11:40]} {[%emt 00:00:14]} 0-1

[Event "Vastgota Open 2023"]
[Site "Skara stadshotell, Jarnvagsgatan 5, Skara, Sweden"]
[Date "2023.02.18"]
[Round "1.11"]
[White "Ernst, Thomas"]
[Black "Sundqvist, Jan-Ove"]
[Result "1-0"]
[TimeControl "15 minutes + 5 seconds per move from move one (Round 1 - 2) / 30 minutes + 10 seconds per move from move one (Round 3 - 9)"]
[WhiteTitle "GM"]
[WhiteFideId "1700065"]
[BlackFideId "1720414"]
[WhiteElo "2315"]
[BlackElo "1781"]

1. e4 {[%clk 00:15:07]} {[%emt 00:00:02]} c5 {[%clk 00:14:56]} {[%emt
00:00:15]} 2. Nf3 {[%clk 00:15:09]} {[%emt 00:00:03]} Nc6 {[%clk 00:14:57]}
{[%emt 00:00:03]} 3. d4 {[%clk 00:15:12]} {[%emt 00:00:03]} cxd4 {[%clk
00:14:59]} {[%emt 00:00:03]} 4. Nxd4 {[%clk 00:15:15]} {[%emt 00:00:02]} Nf6
{[%clk 00:14:35]} {[%emt 00:00:29]} 5. Nc3 {[%clk 00:15:16]} {[%emt 00:00:03]}
d6 {[%clk 00:14:31]} {[%emt 00:00:10]} 6. Bg5 {[%clk 00:15:18]} {[%emt
00:00:03]} Bd7 {[%clk 00:12:02]} {[%emt 00:02:34]} 7. Qd2 {[%clk 00:15:18]}
{[%emt 00:00:05]} a6 {[%clk 00:11:58]} {[%emt 00:00:09]} 8. O-O-O {[%clk
00:15:10]} {[%emt 00:00:13]} b5 {[%clk 00:11:43]} {[%emt 00:00:21]} 9. Bxf6
{[%clk 00:14:00]} {[%emt 00:01:15]} gxf6 {[%clk 00:11:46]} {[%emt 00:00:02]} 10.
f4 {[%clk 00:13:43]} {[%emt 00:00:21]} Bh6 {[%clk 00:11:24]} {[%emt 00:00:27]}
11. Nf5 {[%clk 00:12:58]} {[%emt 00:00:49]} Bxf5 {[%clk 00:10:59]} {[%emt
00:00:32]} 12. exf5 {[%clk 00:13:00]} {[%emt 00:00:02]} Rc8 {[%clk 00:09:52]}
{[%emt 00:01:12]} 13. Kb1 {[%clk 00:12:31]} {[%emt 00:00:34]} Qa5 {[%clk
00:08:28]} {[%emt 00:01:28]} 14. g3 {[%clk 00:11:35]} {[%emt 00:01:01]} O-O
{[%clk 00:06:03]} {[%emt 00:02:30]} 15. Nd5 {[%clk 00:11:06]} {[%emt 00:00:34]}
Qxd2 {[%clk 00:05:36]} {[%emt 00:00:33]} 16. Rxd2 {[%clk 00:11:08]} {[%emt
00:00:03]} Rfe8 {[%clk 00:05:28]} {[%emt 00:00:13]} 17. Bg2 {[%clk 00:10:46]}
{[%emt 00:00:26]} Kg7 {[%clk 00:05:01]} {[%emt 00:00:33]} 18. a3 {[%clk
00:09:31]} {[%emt 00:01:20]} Ne5 {[%clk 00:04:44]} {[%emt 00:00:22]} 19. Re2
{[%clk 00:09:07]} {[%emt 00:00:29]} Nc6 {[%clk 00:04:37]} {[%emt 00:00:12]} 20.
Rhe1 {[%clk 00:08:46]} {[%emt 00:00:25]} Kf8 {[%clk 00:03:27]} {[%emt
00:01:17]} 21. Nxf6 {[%clk 00:07:08]} {[%emt 00:01:41]} exf6 {[%clk 00:03:07]}
{[%emt 00:00:26]} 22. Rxe8+ {[%clk 00:07:11]} {[%emt 00:00:02]} Rxe8 {[%clk
00:03:10]} {[%emt 00:00:02]} 23. Rxe8+ {[%clk 00:07:13]} {[%emt 00:00:02]} Kxe8
{[%clk 00:03:14]} {[%emt 00:00:01]} 24. Bxc6+ {[%clk 00:07:16]} {[%emt
00:00:03]} Kd8 {[%clk 00:03:16]} {[%emt 00:00:04]} 25. Bd5 {[%clk 00:07:13]}
{[%emt 00:00:07]} Ke7 {[%clk 00:03:13]} {[%emt 00:00:09]} 26. b4 {[%clk
00:07:14]} {[%emt 00:00:03]} Bf8 {[%clk 00:03:00]} {[%emt 00:00:18]} 27. Bb7
{[%clk 00:06:59]} {[%emt 00:00:18]} 1-0

[Event "Vastgota Open 2023"]
[Site "Skara stadshotell, Jarnvagsgatan 5, Skara, Sweden"]
[Date "2023.02.18"]
[Round "1.12"]
[White "Helin, Mikael"]
[Black "Lindgren, Philip"]
[Result "0-1"]
[TimeControl "15 minutes + 5 seconds per move from move one (Round 1 - 2) / 30 minutes + 10 seconds per move from move one (Round 3 - 9)"]
[WhiteTitle "CM"]
[BlackTitle "IM"]
[WhiteFideId "1703838"]
[BlackFideId "1713230"]
[WhiteElo "1750"]
[BlackElo "2282"]

1. e4 {[%clk 00:15:08]} {[%emt 00:00:02]} c6 {[%clk 00:15:07]} {[%emt
00:00:03]} 2. d4 {[%clk 00:15:02]} {[%emt 00:00:11]} d5 {[%clk 00:15:10]}
{[%emt 00:00:02]} 3. f3 {[%clk 00:15:06]} {[%emt 00:00:01]} e6 {[%clk
00:14:47]} {[%emt 00:00:28]} 4. Be3 {[%clk 00:15:07]} {[%emt 00:00:04]} dxe4
{[%clk 00:14:25]} {[%emt 00:00:27]} 5. fxe4 {[%clk 00:14:22]} {[%emt 00:00:49]}
Qh4+ {[%clk 00:14:24]} {[%emt 00:00:07]} 6. g3 {[%clk 00:14:25]} {[%emt
00:00:01]} Qxe4 {[%clk 00:14:27]} {[%emt 00:00:02]} 7. Qd2 {[%clk 00:14:29]}
{[%emt 00:00:02]} Qd5 {[%clk 00:12:23]} {[%emt 00:02:10]} 8. Bg2 {[%clk
00:14:08]} {[%emt 00:00:25]} Qd8 {[%clk 00:12:26]} {[%emt 00:00:02]} 9. Nc3
{[%clk 00:14:03]} {[%emt 00:00:11]} Nf6 {[%clk 00:12:26]} {[%emt 00:00:04]} 10.
Nge2 {[%clk 00:13:48]} {[%emt 00:00:20]} Nbd7 {[%clk 00:12:19]} {[%emt
00:00:12]} 11. a3 {[%clk 00:13:44]} {[%emt 00:00:10]} Be7 {[%clk 00:12:07]}
{[%emt 00:00:16]} 12. O-O {[%clk 00:12:58]} {[%emt 00:00:51]} O-O {[%clk
00:12:06]} {[%emt 00:00:05]} 13. h3 {[%clk 00:12:28]} {[%emt 00:00:36]} e5
{[%clk 00:10:48]} {[%emt 00:01:23]} 14. Kh2 {[%clk 00:12:19]} {[%emt 00:00:14]}
exd4 {[%clk 00:10:38]} {[%emt 00:00:15]} 15. Nxd4 {[%clk 00:12:21]} {[%emt
00:00:03]} Ne5 {[%clk 00:10:31]} {[%emt 00:00:12]} 16. Qe2 {[%clk 00:11:06]}
{[%emt 00:01:21]} Re8 {[%clk 00:09:50]} {[%emt 00:00:46]} 17. Rad1 {[%clk
00:10:59]} {[%emt 00:00:12]} Qc7 {[%clk 00:09:17]} {[%emt 00:00:37]} 18. Nf5
{[%clk 00:09:54]} {[%emt 00:01:10]} Bxf5 {[%clk 00:08:56]} {[%emt 00:00:26]} 19.
Rxf5 {[%clk 00:09:57]} {[%emt 00:00:02]} Ng6 {[%clk 00:07:24]} {[%emt
00:01:37]} 20. Qf2 {[%clk 00:09:32]} {[%emt 00:00:30]} Bd6 {[%clk 00:06:49]}
{[%emt 00:00:40]} 21. Rxf6 {[%clk 00:08:47]} {[%emt 00:00:50]} gxf6 {[%clk
00:06:24]} {[%emt 00:00:30]} 22. Ne4 {[%clk 00:08:34]} {[%emt 00:00:18]} Rxe4
{[%clk 00:04:03]} {[%emt 00:02:26]} 23. Bxe4 {[%clk 00:08:36]} {[%emt
00:00:02]} Re8 {[%clk 00:03:44]} {[%emt 00:00:24]} 24. Bd3 {[%clk 00:06:13]}
{[%emt 00:02:29]} Bxg3+ {[%clk 00:03:41]} {[%emt 00:00:09]} 25. Qxg3 {[%clk
00:06:06]} {[%emt 00:00:11]} Qxg3+ {[%clk 00:03:44]} {[%emt 00:00:01]} 26. Kxg3
{[%clk 00:06:09]} {[%emt 00:00:02]} Rxe3+ {[%clk 00:03:47]} {[%emt 00:00:02]}
27. Kf2 {[%clk 00:05:57]} {[%emt 00:00:17]} Rxh3 {[%clk 00:03:34]} {[%emt
00:00:18]} 28. Re1 {[%clk 00:05:46]} {[%emt 00:00:15]} Kg7 {[%clk 00:03:16]}
{[%emt 00:00:24]} 29. b4 {[%clk 00:05:35]} {[%emt 00:00:17]} Ne5 {[%clk
00:02:38]} {[%emt 00:00:42]} 30. Be4 {[%clk 00:04:54]} {[%emt 00:00:45]} Rxa3
{[%clk 00:02:31]} {[%emt 00:00:14]} 31. Rg1+ {[%clk 00:04:50]} {[%emt
00:00:08]} Ng6 {[%clk 00:02:26]} {[%emt 00:00:10]} 32. Rd1 {[%clk 00:04:44]}
{[%emt 00:00:10]} a5 {[%clk 00:01:59]} {[%emt 00:00:34]} 33. Rd7 {[%clk
00:04:05]} {[%emt 00:00:43]} axb4 {[%clk 00:01:53]} {[%emt 00:00:11]} 34. Rxb7
{[%clk 00:04:09]} {[%emt 00:00:01]} c5 {[%clk 00:01:56]} {[%emt 00:00:02]} 35.
Bd5 {[%clk 00:03:55]} {[%emt 00:00:19]} Ne5 {[%clk 00:01:58]} {[%emt 00:00:03]}
36. Rb5 {[%clk 00:03:38]} {[%emt 00:00:22]} Rc3 {[%clk 00:02:01]} {[%emt
00:00:02]} 37. Be4 {[%clk 00:03:33]} {[%emt 00:00:11]} h5 {[%clk 00:01:44]}
{[%emt 00:00:21]} 38. Kg2 {[%clk 00:03:18]} {[%emt 00:00:20]} Kh6 {[%clk
00:01:47]} {[%emt 00:00:02]} 39. Rb8 {[%clk 00:02:01]} {[%emt 00:01:22]} Kg5
{[%clk 00:01:50]} {[%emt 00:00:02]} 40. Rg8+ {[%clk 00:01:43]} {[%emt
00:00:23]} Kf4 {[%clk 00:01:52]} {[%emt 00:00:02]} 41. Bh7 {[%clk 00:01:42]}
{[%emt 00:00:07]} f5 {[%clk 00:01:51]} {[%emt 00:00:06]} 42. Rh8 {[%clk
00:01:22]} {[%emt 00:00:25]} Rxc2+ {[%clk 00:01:51]} {[%emt 00:00:05]} 43. Kg1
{[%clk 00:01:08]} {[%emt 00:00:19]} b3 {[%clk 00:01:39]} {[%emt 00:00:18]} 44.
Bxf5 {[%clk 00:00:53]} {[%emt 00:00:20]} Kxf5 {[%clk 00:01:33]} {[%emt
00:00:10]} 45. Rxh5+ {[%clk 00:00:56]} {[%emt 00:00:02]} Kf4 {[%clk 00:01:30]}
{[%emt 00:00:08]} 0-1

[Event "Vastgota Open 2023"]
[Site "Skara stadshotell, Jarnvagsgatan 5, Skara, Sweden"]
[Date "2023.02.18"]
[Round "2.1"]
[White "Ask, Josef"]
[Black "Chatalbashev, Boris"]
[Result "0-1"]
[TimeControl "15 minutes + 5 seconds per move from move one (Round 1 - 2) / 30 minutes + 10 seconds per move from move one (Round 3 - 9)"]
[WhiteTitle "FM"]
[BlackTitle "GM"]
[WhiteFideId "1704583"]
[BlackFideId "2900440"]
[WhiteElo "2102"]
[BlackElo "2522"]

1. e4 {[%clk 00:15:08]} {[%emt 00:00:01]} g6 {[%clk 00:15:08]} {[%emt
00:00:03]} 2. d3 {[%clk 00:15:06]} {[%emt 00:00:07]} Bg7 {[%clk 00:15:10]}
{[%emt 00:00:02]} 3. g3 {[%clk 00:15:07]} {[%emt 00:00:04]} c5 {[%clk
00:14:57]} {[%emt 00:00:18]} 4. Bg2 {[%clk 00:15:08]} {[%emt 00:00:04]} Nc6
{[%clk 00:15:01]} {[%emt 00:00:02]} 5. Ne2 {[%clk 00:14:58]} {[%emt 00:00:14]}
e6 {[%clk 00:14:50]} {[%emt 00:00:16]} 6. Nbc3 {[%clk 00:14:50]} {[%emt
00:00:13]} Nge7 {[%clk 00:14:52]} {[%emt 00:00:03]} 7. O-O {[%clk 00:14:42]}
{[%emt 00:00:13]} O-O {[%clk 00:14:46]} {[%emt 00:00:11]} 8. h3 {[%clk
00:14:37]} {[%emt 00:00:10]} Rb8 {[%clk 00:14:17]} {[%emt 00:00:34]} 9. Be3
{[%clk 00:14:19]} {[%emt 00:00:23]} Nd4 {[%clk 00:14:07]} {[%emt 00:00:15]} 10.
Qd2 {[%clk 00:14:06]} {[%emt 00:00:18]} b5 {[%clk 00:13:58]} {[%emt 00:00:14]}
11. a3 {[%clk 00:12:13]} {[%emt 00:01:59]} d6 {[%clk 00:13:32]} {[%emt
00:00:31]} 12. Bh6 {[%clk 00:11:15]} {[%emt 00:01:02]} Bxh6 {[%clk 00:12:52]}
{[%emt 00:00:45]} 13. Qxh6 {[%clk 00:11:15]} {[%emt 00:00:06]} Nxc2 {[%clk
00:12:51]} {[%emt 00:00:04]} 14. Rac1 {[%clk 00:11:04]} {[%emt 00:00:17]} Nd4
{[%clk 00:12:53]} {[%emt 00:00:04]} 15. f4 {[%clk 00:10:30]} {[%emt 00:00:39]}
Nxe2+ {[%clk 00:10:28]} {[%emt 00:02:29]} 16. Nxe2 {[%clk 00:10:33]} {[%emt
00:00:02]} Kh8 {[%clk 00:10:10]} {[%emt 00:00:23]} 17. f5 {[%clk 00:10:04]}
{[%emt 00:00:36]} exf5 {[%clk 00:10:01]} {[%emt 00:00:13]} 18. Qe3 {[%clk
00:08:46]} {[%emt 00:01:22]} Be6 {[%clk 00:07:59]} {[%emt 00:02:07]} 19. Rf4
{[%clk 00:08:27]} {[%emt 00:00:25]} b4 {[%clk 00:06:54]} {[%emt 00:01:10]} 20.
Rh4 {[%clk 00:08:00]} {[%emt 00:00:32]} Ng8 {[%clk 00:06:47]} {[%emt 00:00:11]}
21. Rf1 {[%clk 00:06:50]} {[%emt 00:01:16]} bxa3 {[%clk 00:06:31]} {[%emt
00:00:21]} 22. bxa3 {[%clk 00:06:51]} {[%emt 00:00:04]} g5 {[%clk 00:06:02]}
{[%emt 00:00:34]} 23. Rh5 {[%clk 00:06:40]} {[%emt 00:00:16]} f6 {[%clk
00:06:06]} 24. exf5 {[%clk 00:04:49]} {[%emt 00:01:56]} Bf7 {[%clk 00:06:06]}
{[%emt 00:00:04]} 25. Qf3 {[%clk 00:04:33]} {[%emt 00:00:22]} Qe8 {[%clk
00:05:40]} {[%emt 00:00:30]} 26. g4 {[%clk 00:04:27]} {[%emt 00:00:11]} Bxh5
{[%clk 00:05:43]} {[%emt 00:00:02]} 27. gxh5 {[%clk 00:04:28]} {[%emt
00:00:04]} Qe5 {[%clk 00:05:27]} {[%emt 00:00:21]} 28. Rd1 {[%clk 00:04:05]}
{[%emt 00:00:29]} Rb2 {[%clk 00:05:27]} {[%emt 00:00:05]} 29. Ng3 {[%clk
00:03:39]} {[%emt 00:00:30]} Re8 {[%clk 00:05:22]} {[%emt 00:00:10]} 30. h6
{[%clk 00:03:31]} {[%emt 00:00:13]} Nxh6 {[%clk 00:04:38]} {[%emt 00:00:50]} 31.
Ne4 {[%clk 00:03:17]} {[%emt 00:00:19]} d5 {[%clk 00:04:13]} {[%emt 00:00:31]}
32. Nxc5 {[%clk 00:03:05]} {[%emt 00:00:16]} Qd4+ {[%clk 00:04:14]} {[%emt
00:00:03]} 0-1